Cogmind - Beta 11.1 @@@ ROGUE MODE // 2022.05.22 @ 02:33:39 Player: Lyra Result: Destroyed by as-81731 with Assembled F-torch Performance ------------- Evolutions (0) 0 Regions Visited (2) 400 Robots Destroyed (22) 110 Value Destroyed (462) 462 Prototype IDs (0) 0 Alien Tech Used (0) 0 Bonus (0) 0 TOTAL SCORE: 972 Bonus ------- None Cogmind --------- Core Integrity 0/250 Matter 164/300 Energy 42/125 System Corruption 0% Temperature Cool (16) Movement Hovering (56) Location -10/Mines Parts ------- > --- POWER (1) -------- Light Ion Engine > --- PROPULSION (2) --- Hover Unit Hover Unit > --- UTILITY (2) ------ Hardened Light Armor Plating Shield Generator > --- WEAPON (2) ------- Light Assault Rifle > --- INVENTORY (5) ---- Hover Unit Hardened Light Armor Plating Autogun Autogun Peak State ------------ > --- POWER ------------ Improved Ion Engine > --- PROPULSION ------- Aluminum Leg Aluminum Leg > --- UTILITY ---------- Small Storage Unit Hardened Light Armor Plating > --- WEAPON ----------- Autogun Autogun > --- INVENTORY -------- Aluminum Leg Aluminum Leg Flight Unit Hardened Light Armor Plating Shield Generator Shield Generator Autogun Autogun [Rating: 12] Favorites ----------- Power Ion Engine Engine Ion Engine Propulsion Aluminum Leg Leg Aluminum Leg Hover Unit Hover Unit Utility Small Storage Unit Device Shield Generator Storage Small Storage Unit Processor Visual Processing Unit Protection Hardened Light Armor Plating Weapon Autogun Ballistic Gun Autogun Build | -11 -10 -10 ------- Run | Scr Mat Min Slots Evolved . | . . . Power . | . . . Propulsion . | . . . Utility . | . . . Weapon . | . . . Parts Attached 21 | 6 14 1 Power 4 | 1 3 . Engine 4 | 1 3 . Core . | . . . Reactor . | . . . Propulsion 7 | 2 5 . Treads . | . . . Leg 5 | 2 3 . Wheel . | . . . Hover 2 | . 2 . Flight . | . . . Utility 4 | 1 2 1 Device 1 | . . 1 Storage 1 | 1 . . Processor 1 | . 1 . Hackware . | . . . Protection 1 | . 1 . Artifact . | . . . Weapon 6 | 2 4 . Energy Gun . | . . . Energy Cannon . | . . . Ballistic Gun 6 | 2 4 . Ballistic Cannon . | . . . Launcher . | . . . Special Weapon . | . . . Impact Weapon . | . . . Slashing Weapon . | . . . Piercing Weapon . | . . . Special Melee Weapon . | . . . Unidentified Prototypes . | . . . Parts Lost 1 | . . 1 Power . | . . . Propulsion . | . . . Utility . | . . . Weapon 1 | . . 1 Highest Loss Streak 1 | . . 1 To Critical Strikes . | . . . Average Slot Usage (%) 89 | . 88 97 Engine 13 | . 13 14 Leg 18 | . 20 . Hover 9 | . 7 28 Storage 9 | . 10 . Processor 3 | . 3 8 Protection 6 | . 5 14 Ballistic Gun 26 | . 26 26 Naked Turns . | . . . Heaviest Build 23 | 14 23 14 Greatest Support 20 | 20 20 12 Greatest Overweight (x) 1 | . 1 1 Average Overweight (x) . | . . . Largest Inventory Capacity 8 | 8 8 5 Average Capacity 7 | 7 7 5 Most Carried 8 | . 8 5 Average Carried 3 | . 4 4 Final Capacity 8 | 8 5 5 Final Carried 5 | . 5 4 Class Distribution -------------------- 85% | Mutant 14% | Scavenger-Mutant Dominant Class ---------------- Mutant | -10/Materials Mutant | -10/Mines Resources | -11 -10 -10 ----------- Run | Scr Mat Min Matter Collected 692 | 143 549 . Remotely . | . . . Salvage Created 742 | . 742 . Parts 52 | . 52 . Haulers Intercepted 1 | . 1 . Recyclers Shooed 1 | . 1 . Parts Field Recycled . | . . . Retrieved Matter . | . . . Parts Self-Destructed . | . . . Prevented . | . . . Kills | -11 -10 -10 ------- Run | Scr Mat Min Combat Hostiles Destroyed 13 | . 13 . Guns 13 | . 13 . Classes Destroyed 8 | . 8 . Worker 3 | . 3 . Tunneler 1 | . 1 . Hauler 1 | . 1 . Recycler 1 | . 1 . Operator 1 | . 1 . Watcher 2 | . 2 . Swarmer 3 | . 3 . Grunt 10 | . 10 . Best Kill Streak 5 | . 5 . Combat Bots Only 4 | . 4 . Max Kills in Single Turn 2 | . 2 . Gunslinging . | . . . Exploded . | . . . Melee . | . . . Uniques/NPCs Destroyed . | . . . Combat | -11 -10 -10 -------- Run | Scr Mat Min Damage Taken 779 | . 623 156 Core 253 | . 186 67 Absorbed by Shields 44 | . . 44 Core Remaining (%) 100 | 100 . . Volleys Fired 65 | . 63 2 Largest 2 | . 2 2 Hottest 46 | . 46 43 Shots Fired 125 | . 121 4 Gun 125 | . 121 4 Cannon . | . . . Launcher . | . . . Special . | . . . Kinetic 125 | . 121 4 Thermal . | . . . Explosive . | . . . Electromagnetic . | . . . Robot Hit Streak 15 | . 15 6 Robot Miss Streak 3 | . 3 2 Penetration Max . | . . . Secondary Targets . | . . . Shots Hit Robots 79 | . 77 2 Core Hits 35 | . 34 1 Critical Kills . | . . . Critical Parts Destroyed 1 | . 1 . Critical Strikes 1 | . 1 . Destroy 1 | . 1 . Melee Attacks . | . . . Impact . | . . . Slashing . | . . . Piercing . | . . . Sneak Attacks . | . . . Combat Hostiles . | . . . Follow-up Attacks . | . . . Damage Inflicted 1120 | . 1100 20 Guns 1115 | . 1095 20 Cannons . | . . . Explosions . | . . . Melee . | . . . Ramming 5 | . 5 . Kinetic 1115 | . 1095 20 Thermal . | . . . Explosive . | . . . Electromagnetic . | . . . Impact . | . . . Slashing . | . . . Piercing . | . . . Highest Corruption . | . . . Average Corruption . | . . . Corruption Purged . | . . . Corruption Blocked . | . . . Overload Shots . | . . . Overflow Damage . | . . . Projectiles . | . . . Explosions . | . . . Melee . | . . . Knockbacks . | . . . Impact . | . . . Kinetic . | . . . Secondary . | . . . Self-Inflicted Damage . | . . . Shots . | . . . Rammed . | . . . Targets Rammed 2 | . 2 . Kicked 2 | . 2 . Crushed . | . . . Highest Temperature 64 | . 64 16 Average Temperature 20 | . 20 9 Received Heat Transfer 329 | . 315 14 Siege Activations . | . . . Robots Corrupted . | . . . Combat Hostiles . | . . . Parts Fried . | . . . Impact Corruptions . | . . . Robots Melted . | . . . Combat Hostiles . | . . . Parts Melted . | . . . Heat Transferred . | . . . Parts Sabotaged . | . . . Parts Stolen . | . . . Parts Stripped . | . . . Power Chain Reactions . | . . . Missiles Intercepted . | . . . Alert | -11 -10 -10 ------- Run | Scr Mat Min Peak Influence 248 | . 248 93 Initial 93 | . . 93 Average 113 | . 123 91 Maximum Alert Level 1 | . 1 . Low Security (%) 87 | 100 85 100 Level 1 12 | . 14 . Level 2 . | . . . Level 3 . | . . . Level 4 . | . . . Level 5 . | . . . High Security . | . . . Max Security . | . . . Squads Dispatched 4 | . 4 . Investigation 1 | . 1 . Extermination . | . . . Reinforcement 3 | . 3 . Assault . | . . . Garrison . | . . . Intercept . | . . . Searches Triggered . | . . . Construction Impeded . | . . . Haulers Reinforced . | . . . Active Scanning Responses . | . . . Cargo Convoy Interrupts . | . . . Stealth | -11 -10 -10 --------- Run | Scr Mat Min Distress Signals 1 | . 1 . Communications Jammed . | . . . Distress Signals . | . . . Times Spotted 28 | . 24 4 Peak Tracking Total 5 | . 5 4 Tactical Retreats . | . . . Traps | -11 -10 -10 ------- Run | Scr Mat Min Traps Triggered . | . . . Indirectly . | . . . Trap Hack Attempts . | . . . Triggered . | . . . Disarmed . | . . . Reprogrammed . | . . . Reused . | . . . Traps Extracted . | . . . Installed . | . . . Triggered . | . . . Machines | -11 -10 -10 ---------- Run | Scr Mat Min Machines Disabled . | . . . Max in Single Turn . | . . . Machines Sabotaged . | . . . Garrisons Compromised . | . . . Overloaded Fab Kills . | . . . Hacking | -11 -10 -10 --------- Run | Scr Mat Min Machines Accessed 2 | . 2 . Terminals 2 | . 2 . Fabricators . | . . . Repair Stations . | . . . Recycling Units . | . . . Scanalyzers . | . . . Garrison Access . | . . . Total Hacks 4 | . 4 . Successful 1 | . 1 . Failed 3 | . 3 . Catastrophic 1 | . 1 . Database Lockouts . | . . . Manual 4 | . 4 . Terminals 4 | . 4 . Fabricators . | . . . Repair Stations . | . . . Recycling Units . | . . . Scanalyzers . | . . . Garrison Access . | . . . Terminal Hacks 1 | . 1 . Branch Access Points 1 | . 1 . Fabricator Hacks . | . . . Repair Station Hacks . | . . . Recycling Unit Hacks . | . . . Scanalyzer . | . . . Garrison Access Hacks . | . . . Unauthorized Hacks . | . . . Terminals . | . . . Fabricators . | . . . Repair Stations . | . . . Recycling Units . | . . . Scanalyzers . | . . . Garrison Access . | . . . Data Cores Recovered . | . . . Used . | . . . Hacking Detections 2 | . 2 . Full Trace Events 1 | . 1 . Feedback Events . | . . . Feedback Blocked . | . . . Robot Schematics Acquired . | . . . Robots Built . | . . . Authchips . | . . . Time . | . . . Total Robot Build Rating . | . . . Part Schematics Acquired . | . . . Parts Built . | . . . Authchips . | . . . Time . | . . . Total Part Build Rating . | . . . Parts Repaired . | . . . Time . | . . . Parts Recycled . | . . . Recycled Matter . | . . . Retrieved Matter . | . . . Retrieved Components . | . . . Parts Scanalyzed . | . . . Part Schematics Acquired . | . . . Parts Damaged . | . . . Bothacking | -11 -10 -10 ------------ Run | Scr Mat Min Used RIF Installer . | . . . Robots Hacked . | . . . Non-combat . | . . . Combat . | . . . Robot Hacks Applied . | . . . Relay Couplers Released . | . . . Fabnet Peak Effective % . | . . . Robots Rewired . | . . . Allies Hacked . | . . . Hacks Repelled . | . . . Allies | -11 -10 -10 -------- Run | Scr Mat Min Total Allies . | . . . Largest Group . | . . . Highest-Rated Group . | . . . Highest-Rated Ally . | . . . Total Orders . | . . . Ally Attacks . | . . . Total Damage . | . . . Kills . | . . . Allies Corrupted . | . . . Allies Melted . | . . . Intel | -11 -10 -10 ------- Run | Scr Mat Min Robot Analysis Total . | . . . Derelict Logs Recovered . | . . . Drone Launches . | . . . Drone Recoveries . | . . . Exploration | -11 -10 -10 ------------- Run | Scr Mat Min Turns Passed 831 | 53 712 66 Spaces Moved 522 | 41 432 49 Core 6 | 6 . . Treads . | . . . Legs 275 | 35 240 . Wheels . | . . . Hover 241 | . 192 49 Flight . | . . . Fastest Speed 50 | 50 56 56 Average Speed 97 | 109 100 69 Slowest Speed 190 | 120 190 116 Overloaded Moves . | . . . Propulsion Burnouts . | . . . Robots Hopped . | . . . Cave-ins Triggered . | . . . Exploration Rate (%) 33 | 3 83 15 Regions Visited 2 Branch Regions 1 Pre-discovered Areas . | . . . Known Exits Taken 1 | . 1 . Unknown Exits Taken 1 | 1 . . Scrap Searched . | . . . Spaces Dug . | . . . Terrain Destroyed . | . . . Melee . | . . . Projectile . | . . . AOE . | . . . Terrain Rammed . | . . . Walls Destroyed . | . . . Machines Disabled . | . . . Actions | -11 -10 -10 --------- Run | Scr Mat Min Total 727 | 46 604 77 Wait 96 | . 71 25 Move 520 | 40 431 49 Hop . | . . . Pick Up 9 | . 9 . Fast Attach 13 | 6 7 . Attach 1 | . 1 . Detach 2 | . 2 . Swap 7 | . 6 1 Drop 12 | . 12 . Fire 65 | . 63 2 Melee . | . . . Ram . | . . . Kick 2 | . 2 . Crush . | . . . Escape Stasis . | . . . Rewire . | . . . Trap . | . . . Miscellaneous . | . . . Route ------- -11/Scrapyard -10/Materials (discovered 3 exits: [*Mat x2] / *Min) -10/Mines History --------- Turn | Location | Event 22 | -11/Scrapyard | Discovered new exit (range 16) 54 | -11/Scrapyard | Entered Materials 315 | -10/Materials | Build established: Mutant 434 | -10/Materials | Core integrity fell below 50% 456 | -10/Materials | Discovered new exit (range 4) 628 | -10/Materials | Identified exit to Mines 733 | -10/Materials | Discovered new exit (range 12) 766 | -10/Materials | Entered Mines 768 | -10/Mines | Assembled infested the area 807 | -10/Mines | Core integrity fell below 20% 832 | -10/Mines | Destroyed by as-81731 with Assembled F-torch Last Messages --------------- 00694_ Acquired 14 matter. 00695_ K-01 Serf collects debris. 00713_ U-05 Engineer builds a Door. 00715_ O-16 Technician: "IFF HANDSHAKE FAILED. SECURING TERMINAL." 00721_ ALERT: Hostiles spotted, dispatching reinforcements to Terminal M003. 00733_ EXIT=FOUND 00753_ K-01 Serf cleans the Terminal. 00753_ W-16 Scout destroyed. 00753_ K-01 Serf destroyed. LOCATION=MINES GOAL=ESCAPE 00768_ ALERT: Infestation in the mines, dispatching Demolisher response squad. 00768_ K-01 Serf collects debris. 00802_ Discarded Visual Processing Unit. 00803_ as-38809 sneak attacks. 00803_ K-01 Serf destroyed. 00805_ K-01 Serf collects debris. 00821_ Autogun destroyed. Map ----- +----------------------------------------------------+ | | | | | | | | | | | | | | | | | | | | | | | | | | | | | | | | | | | | | | | | | ?????????????????????????????????????????????????? | | ???????????????????????????######????????????????? | | ??????????????????????????## $##??????????????## | | ????????????????????????### #?????????????## | | ?????????????????######## #????????????## | | ?????????????????# a @ #???########## | | ?????????????????# ##### #??## | | ???????????????????????## a a #?## | | ????????????????????????# ### ####### | | ????????????????????????## ##?????? | | ?????????????????????????## a< ###??????? | | ??????????????????????????## #### ##????????? | | ???????????????????????????## ##??# ##?????????? | | ????????????????????????????####???# #??????????? | | ???????????????????????????????????# ??????????? | | ???????????????????????????????????# ?????????? | | ??????????????????????????????????? ????????? | | ??????????????????????????????????# ???????? | | ?????????????????????????????????? ??????? | | ?????????????????????????????????? ?????? | | ?????????????????????????????????? #????? | | ??????????????????????????????????? ####?????? | | ???????????????????????????????????% #????????? | | ??????????????????????????????????? #?????????? | | ?????????????????????????????????????????????????? | | ?????????????????????????????????????????????????? | | ?????????????????????????????????????????????????? | | ?????????????????????????????????????????????????? | | ?????????????????????????????????????????????????? | | ?????????????????????????????????????????????????? | +----------------------------------------------------+ Best States ------------- Heat Dissipation 25 Energy Generation 12 Energy Capacity 265 Matter Stores 300 Matter Capacity 300 Sight Range 18 Terrain Scan Density 10 Armor Coverage 150 Evasion (%) 55 Item Schematics ----------------- None Robot Schematics ------------------ None Fabricated ------------ Nothing Alien Tech Used ----------------- None Achievements -------------- None Challenges ------------ None Game ------ Seed ShrapnelGravitonModule Manual? 0 Play Time 00:11:01 Cumulative 106.2 hours Start 2022.05.22 @ 00:52:34 End 2022.05.22 @ 02:33:39 Sessions 2 Manual Loads 0 Difficulty Rogue Special Mode None Game No. 45 Rogue 45 Adventurer 0 Explorer 0 Win Type - Total 2 Types 1/0/1/0/0/0/0/0/0 Lore% 36 Gallery% 63 Achievement% 71 Wizard Run 0 Options --------- ASCII 0 Keyboard 0 Movement Numpad Keybinds 0 Fullscreen 1 Font 24/Smallcaps Map View 76x50 Tactical HUD 1 Map Filters NONE Filters LOW_CONTRAST(13,24,33) Steam 1 RUN: 1cd1f0f8-8153-4d46-9ac9-c3bd77070918